[Event "GER-ch Youth-U16 2022"]
[Site "Willingen"]
[Date "2022.06.07"]
[Round "4.10"]
[White "Gluma, Christian"]
[Black "Rempe, Jonas"]
[Result "0-1"]
[ECO "C55"]
[WhiteElo "2012"]
[BlackElo "1856"]
[Annotator "TA"]
[PlyCount "94"]
[EventDate "2022.06.05"]
[EventType "swiss"]
[EventRounds "9"]
[EventCountry "GER"]
[SourceTitle "playchess.com"]
[Source "ChessBase"]
[SourceQuality "1"]
[TimeControl "40/4500+30:900+30"]

{[%evp 13,94,38,35,35,41,34,30,23,17,14,18,11,27,34,43,41,42,49,53,54,57,41,38,-164,-162,-188,-198,-189,-21,-22,-23,-23,-31,-22,-22,-106,-13,-13,-13,-14,-13,-40,-40,-47,-45,-61,-14,-14,-14,-150,-148,-131,-246,-199,-184,-163,-155,-311,-298,-297,-287,-420,-420,-697,-665,-821,-768,-766,-726,-1073,-420,-351,-928,-1055,-916,-993,-905,-1106,-1106,-1097,-1075,-1013,-695]} 1. e4 {[%emt 0:00:00]} e5 {[%emt 0:00:00]} 2. Nf3 {[%emt 0:00:00]} Nc6 {[%emt 0:00:00]} 3. Bc4 {[%emt 0:00:00]} Nf6 {[%emt 0:00:00]} 4. d3 {[%emt 0:00:00]} Be7 {[%emt 0:00:00]} 5. O-O {[%emt 0:00:00]} O-O {[%emt 0:00:00]} 6. Re1 {[%emt 0:00:00]} d6 {[%emt 0:00:00]} 7. a4 {[%emt 0:00:00]} Na5 {[%emt 0:00:00] 7...h6 is the modern continuation.} 8. Ba2 {[%emt 0:00:00] C55: Two Knights: 4 d3, 4 d4 exd4 5 e5 and Max Lange Attack.} c5 {[%emt 0:01:22]} 9. c3 {[%emt 0:00:00]} Nc6 {[%emt 0:00:01]} 10. h3 {[%emt 0:00:00] White has an edge.} Be6 {[%emt 0:04:42] was the old line (10...h6).} 11. Bxe6 {[%emt 0:02:01]} fxe6 {[%emt 0:00:22]} 12. Na3 {[%emt 0:02:31] [#]} Qd7 $146 {[%emt 0:15:20]} (12... Nh5 13. Nc4 Nf4 14. Be3 Rc8 15. b3 b6 16. d4 exd4 17. cxd4 d5 18. exd5 exd5) ({Predecessor:} 12... Nh5 13. Nc4 Nf4 14. Be3 Rc8 15. b3 b6 16. d4 exd4 17. cxd4 d5 18. exd5 exd5 {½-½ (77) Mikadze,M (2266)-Khomeriki,N (2347) Tbilisi 2019}) 13. Nc4 {[%emt 0:08:42]} Rae8 {[%emt 0:08:38]} 14. Bd2 {[%emt 0:07:11]} Bd8 {[%emt 0:06:20]} 15. b4 {[%emt 0:04:44]} cxb4 {[%emt 0:09:51]} 16. cxb4 {[%emt 0:00:08]} Bc7 {[%emt 0:00:06]} 17. b5 {[%emt 0:21:04]} (17. Bc3) 17... Nd4 {[%emt 0:07:25]} 18. Bb4 $2 {[%emt 0:02:55]} (18. Nxd4 exd4 19. Bb4) (18. Nxd4 $14 {keeps the upper hand.} exd4 19. Bb4) 18... Nxf3+ $19 {[%emt 0:06:52]} 19. Qxf3 {[%emt 0:05:39] [#]} Nd5 {[%mdl 512] Against Qe3} 20. Nxe5 {[%emt 0:06:56]} Qe7 {[%emt 0:01:04]} 21. exd5 $11 {[%emt 0:02:02]} Rxf3 {[%emt 0:00:21]} 22. Nxf3 {[%emt 0:00:07]} Qd7 {[%emt 0:06:44]} 23. Rac1 {[%emt 0:02:23][%cal Ba1c1,Bc1c5,Bc5d5,Bd5d8][%mdl 32] Threatens to win with Rxe6.} Bb6 {[%emt 0:05:47]} 24. a5 {[%emt 0:06:10]} (24. Re4 $11 {remains equal.}) 24... Bc5 {[%emt 0:07:16]} (24... Bd8 $17 25. a6 bxa6 26. bxa6 Bb6) 25. Bxc5 {[%emt 0:01:26]} dxc5 {[%emt 0:00:01]} 26. Rxc5 {[%emt 0:01:48]} exd5 {[%emt 0:00:03]} 27. Rxe8+ {[%emt 0:00:49]} Qxe8 {[%emt 0:00:01]} 28. Rxd5 {[%emt 0:00:20][%mdl 4096] Endgame KQ-KRN} h6 $1 {[%emt 0:02:50]} 29. d4 {[%emt 0:04:07]} Qe6 (29... Qe4 $15 30. Rc5 Qb1+ 31. Kh2 Qb4) 30. Rd8+ Kh7 $1 {[%emt 0:03:28] With the idea ...Qa2.} 31. h4 {[%emt 0:06:32] White is now going downhill.} (31. d5 $11 Qe7 32. Ra8) 31... Qa2 $17 {[%emt 0:01:28]} 32. Rd7 {[%emt 0:01:12]} (32. h5) 32... Qb1+ {[%emt 0:01:29]} 33. Kh2 {[%emt 0:00:25]} Qxb5 {[%emt 0:00:01]} 34. Ne5 {[%emt 0:00:52]} h5 {[%emt 0:01:12]} (34... Qxa5 35. Rxb7 Qd8 36. Rxa7 Qxd4) 35. a6 $2 {[%emt 0:04:11]} (35. Rf7 $17) 35... bxa6 {[%emt 0:01:01]} 36. Re7 {[%emt 0:01:57]} ({Much worse is} 36. Rxa7 Qb6 37. Ra8 (37. Rd7 $2 a5 $19) 37... Qxd4 $19) 36... Qb4 {[%emt 0:00:41]} 37. Rd7 {[%emt 0:00:54]} (37. Re6 {might work better.} Qxd4 38. Nf3) 37... a5 $19 {[%emt 0:00:54] Hoping for ...a4.} 38. Nf3 {[%emt 0:01:41]} (38. Rxa7 $142 Qxd4 39. Rxa5 Qxh4+ 40. Kg1) 38... a4 {[%emt 0:00:32] Strongly threatening ...a3.} 39. g3 {[%emt 0:00:44]} Qb2 {[%emt 0:02:09]} 40. Ng5+ {[%emt 0:00:33]} Kg6 {[%emt 0:00:01]} 41. Kg2 {[%emt 0:15:50]} a3 {[%emt 0:15:45]} (41... Qb6 $142 42. Re7 a3) 42. Rd6+ {[%emt 0:00:00]} (42. Rxa7 $142 a2 43. Ra6+ Kf5 44. Ra5+ Kf6 45. Ne4+ Ke7 46. Ra7+ Kd8 47. Kf3) 42... Kf5 {[%emt 0:00:00]} 43. Rd5+ {[%emt 0:00:00] [#] Black is clearly winning.} Kf6 $1 {[%emt 0:00:00]} 44. Ne4+ {[%emt 0:00:00]} Kf7 {[%emt 0:00:00]} 45. Rd7+ {[%emt 0:00:00]} Ke8 {[%emt 0:00:00]} 46. Rxa7 {[%emt 0:00:00]} a2 {[%emt 0:00:00]} 47. Nd6+ {[%emt 0:00:00]} Kd8 {[%emt 0:00:00] Weighted Error Value: White=0.59/Black=0.27 (precise)} 0-1

[Event "GER-ch Youth-U16 2022"]
[Site "Willingen"]
[Date "2022.06.07"]
[Round "4.11"]
[White "Tovmasyan, Minas"]
[Black "Bungarten, Jona"]
[Result "0-1"]
[ECO "D43"]
[WhiteElo "1933"]
[BlackElo "1843"]
[Annotator "TA"]
[PlyCount "88"]
[EventDate "2022.06.05"]
[EventType "swiss"]
[EventRounds "9"]
[EventCountry "GER"]
[SourceTitle "playchess.com"]
[Source "ChessBase"]
[SourceQuality "1"]
[TimeControl "40/4500+30:900+30"]

{[%evp 17,88,-1,32,0,4,0,16,9,26,7,12,0,89,-95,-101,-119,-122,-129,-129,-120,-108,-171,-171,-170,-118,-129,-108,-137,-121,-150,-81,-141,-142,-163,-125,-184,-183,-200,-179,-252,-201,-231,-217,-270,-275,-356,-413,-409,-396,-380,-348,-309,-301,-291,-288,-337,-289,-591,-495,-561,-587,-727,-714,-810,-730,-1579,-1409,-2726,-3081,-2526,-2621,-2404,-2026]} 1. d4 {[%emt 0:00:00]} d5 {[%emt 0:00:00]} 2. c4 {[%emt 0:00:00]} e6 {[%emt 0:00:00]} 3. Nf3 {[%emt 0:00:00]} Nf6 {[%emt 0:00:00]} 4. Nc3 {[%emt 0:00:00]} c6 {[%emt 0:00:00]} 5. Qd3 {[%emt 0:00:00]} Bb4 {[%emt 0:00:00]} 6. g3 {[%emt 0:00:00]} Ne4 {[%emt 0:00:00]} 7. Bg2 {[%emt 0:00:00]} O-O {[%emt 0:00:04]} 8. O-O {[%emt 0:00:00]} Bxc3 {[%emt 0:04:37]} 9. bxc3 {[%emt 0:00:00]} Nd7 {[%emt 0:00:29] [#]} 10. Nd2 $146 {[%emt 0:11:39] E20: Nimzo-Indian: 4 g3 and 4 f3.} ({Predecessor:} 10. cxd5 exd5 11. c4 Ndf6 12. cxd5 cxd5 13. Nh4 h6 14. f3 Nd6 15. e4 dxe4 16. fxe4 Bd7 17. a4 Nh7 {1-0 (43) Marinsek,D (1855)-Cokan,M (1726) Nova Gorica 2019}) 10... f5 {[%emt 0:02:00]} 11. f3 {[%emt 0:09:43]} Nxd2 {[%emt 0:11:25]} 12. Bxd2 {[%emt 0:01:11] The position is equal.} b6 {[%emt 0:01:30]} 13. cxd5 {[%emt 0:05:24]} cxd5 {[%emt 0:01:46]} 14. e4 {[%emt 0:02:45]} Bb7 (14... dxe4 $1 $11 {keeps the balance.} 15. fxe4 Nc5) 15. Rfe1 $2 {[%emt 0:09:06]} (15. exf5 $16 {stays on course.} exf5 16. Rab1) 15... dxe4 $1 $17 {[%emt 0:15:37]} 16. fxe4 {[%emt 0:00:27] [#]} Nc5 $1 {[%emt 0:00:12][%mdl 512]} 17. Qc4 {[%emt 0:09:32] [#]} (17. Qe2 Nxe4) 17... Ba6 $1 {[%emt 0:07:23]} 18. Qb4 {[%emt 0:00:09]} Nxe4 {[%emt 0:00:15]} 19. Bxe4 {[%emt 0:05:35]} (19. Qa4 $17 Bb7 20. Qb4) 19... fxe4 $19 {[%emt 0:00:06]} 20. Bf4 {[%emt 0:06:08]} Bb7 {[%emt 0:05:27]} (20... Qd5 21. Qd6 Bd3) (20... Qd5 $19 {[%cal Of8f4] aiming for ...Rxf4!} 21. Qd6 Rac8) 21. Qd6 {[%emt 0:11:24]} Qf6 {[%emt 0:08:22]} 22. Qe5 {[%emt 0:03:04]} Qg6 {[%emt 0:01:26]} 23. Qg5 {[%emt 0:01:45]} Qf5 {[%emt 0:01:29]} (23... Qe8 $142 {Threatens to win with ...Rf5.} 24. Qg4 (24. Be5 Qd7 $17) 24... Rc8) 24. Rab1 {[%emt 0:04:21]} (24. c4 $142) 24... Rac8 {[%emt 0:01:30]} 25. Re3 {[%emt 0:01:21]} Rf6 {[%emt 0:03:10]} 26. Rb5 {[%emt 0:01:17]} (26. Qxf5 $17 exf5 27. a4) 26... Qxg5 {[%emt 0:02:34]} 27. Bxg5 {[%emt 0:01:33]} Rf5 {[%emt 0:00:23]} 28. a4 {[%emt 0:02:32]} (28. Re5 {keeps fighting.}) 28... Rc4 {[%emt 0:01:09]} 29. Rxf5 {[%emt 0:00:31]} exf5 {[%emt 0:00:07][%mdl 4096] Endgame KRB-KRB} 30. a5 {[%emt 0:00:24]} bxa5 {[%emt 0:00:32]} 31. Bd8 {[%emt 0:00:27]} a4 {[%emt 0:05:33]} 32. Be7 {[%emt 0:00:01]} Kf7 {[%emt 0:00:46]} 33. Bb4 {[%emt 0:00:45]} Ke6 {[%emt 0:00:23]} 34. Re1 {[%emt 0:00:38]} Bc6 {[%emt 0:04:09]} 35. Kf2 {[%emt 0:00:18]} Kd5 {[%emt 0:01:27]} 36. Rc1 {[%emt 0:00:48]} Bb5 {[%emt 0:00:53] Strongly threatening ...Rxb4.} 37. Bc5 $2 {[%emt 0:00:04]} (37. Ke3) 37... Rxc5 {[%emt 0:01:17] Black is clearly winning.} 38. dxc5 {[%emt 0:00:08]} Kxc5 {[%emt 0:00:25] KR-KB} 39. Rb1 {[%emt 0:00:48]} a5 {[%emt 0:02:25]} 40. Ke3 {[%emt 0:00:28]} Kc4 {[%emt 0:01:06] And now ...a3 would win.} 41. h4 {[%emt 0:00:00]} a3 {[%emt 0:00:00][%cal Ba4a3,Ba3a2][%mdl 32] White must now prevent ...a2.} 42. h5 {[%emt 0:00:00]} a2 {[%emt 0:00:00]} 43. Ra1 {[%emt 0:02:27]} Kb3 {[%emt 0:00:00]} 44. Rd1 {[%emt 0:01:17]} Kxc3 {[%emt 0:00:00] Weighted Error Value: White=0.78/Black=0.11 (very precise)} 0-1

[Event "GER-ch Youth-U16 2022"]
[Site "Willingen"]
[Date "2022.06.07"]
[Round "4.12"]
[White "Heinrich, John"]
[Black "Weidenhoefer, Max"]
[Result "1-0"]
[ECO "B01"]
[WhiteElo "2011"]
[BlackElo "1945"]
[Annotator "TA"]
[PlyCount "59"]
[EventDate "2022.06.05"]
[EventType "swiss"]
[EventRounds "9"]
[EventCountry "GER"]
[SourceTitle "playchess.com"]
[Source "ChessBase"]
[SourceQuality "1"]
[TimeControl "40/4500+30:900+30"]

{[%evp 10,59,68,40,53,58,52,33,39,41,51,12,48,47,407,402,389,398,395,391,391,377,395,385,383,341,342,343,337,329,343,339,361,344,347,332,438,423,543,542,526,501,945,939,29984,29985,29984,1515,1496,1377,5597,5502]} 1. e4 {[%emt 0:00:00]} d5 {[%emt 0:00:00]} 2. exd5 {[%emt 0:00:00]} Qxd5 {[%emt 0:00:00]} 3. Nc3 {[%emt 0:00:00]} Qd6 {[%emt 0:00:00]} 4. d4 {[%emt 0:00:00]} Nf6 {[%emt 0:00:00]} 5. Nf3 {[%emt 0:00:00]} c6 {[%emt 0:00:00]} 6. Ne5 {[%emt 0:00:00]} Be6 {[%emt 0:00:00] B01: Scandinavian Defence.} 7. Bf4 {[%emt 0:00:00][%cal Oe5g6] aiming for Ng6!} Qd8 {[%emt 0:00:00]} 8. Qd2 {[%emt 0:00:11]} g6 {[%emt 0:00:00] White is slightly better.} 9. Be2 {[%emt 0:03:10]} Nbd7 {[%emt 0:00:00]} 10. Bf3 {[%emt 0:10:13] [#]} Qa5 $146 {[%emt 0:17:56]} ({Predecessor:} 10... Nxe5 11. Bxe5 Bg7 12. O-O-O h5 13. Kb1 Bd5 14. Nxd5 cxd5 15. h3 h4 16. c4 e6 17. cxd5 exd5 {1-0 (40) Plotkin,M (2186)-Hua,E (1812) Aurora 2014}) 11. O-O {[%emt 0:01:52][%cal Oc3d5]} Rd8 $2 {[%emt 0:04:01][%mdl 8192] [#]} (11... Nxe5 $14 12. Bxe5 (12. dxe5 Nd7 $11) 12... Bg7) 12. Nd5 $1 $18 {[%emt 0:04:26][%mdl 512]} Qxd5 {[%emt 0:06:56]} 13. Bxd5 {[%emt 0:00:59]} Nxd5 {[%emt 0:00:02]} 14. Nxd7 {[%emt 0:02:25]} Rxd7 {[%emt 0:00:24]} 15. Bh6 {[%emt 0:00:19]} Bxh6 {[%emt 0:00:54]} 16. Qxh6 {[%emt 0:00:05]} Nf6 {[%emt 0:00:08]} 17. Qf4 {[%emt 0:00:35] Qb8+ is the strong threat.} O-O {[%emt 0:00:27]} 18. c3 {[%emt 0:00:35]} Rfd8 {[%emt 0:00:38]} 19. Rfe1 {[%emt 0:01:04]} Kg7 {[%emt 0:01:32]} 20. Re5 {[%emt 0:01:09]} Bf5 {[%emt 0:01:48]} 21. Rae1 {[%emt 0:01:01]} e6 {[%emt 0:01:49]} 22. Qd2 {[%emt 0:01:52]} c5 {[%emt 0:01:03]} 23. f3 {[%emt 0:07:12]} ({Weaker is} 23. Rxc5 Ne4 24. Rxe4 Bxe4 $18) 23... cxd4 {[%emt 0:01:28]} 24. g4 {[%emt 0:02:56][%cal Bg2g4,Bg4g5][%mdl 32]} dxc3 {[%emt 0:00:35]} 25. Qxc3 {[%emt 0:00:14]} Bd3 {[%emt 0:00:49]} (25... Rd3 $142) 26. g5 {[%emt 0:00:16]} Nh5 {[%emt 0:00:50]} 27. Rxe6+ {[%emt 0:00:41]} Rd4 {[%emt 0:00:17] [#]} 28. R6e4 $1 {[%emt 0:00:23]} Bxe4 {[%emt 0:00:31]} 29. Rxe4 {[%emt 0:00:06]} Nf4 {[%emt 0:00:10]} 30. Rxf4 {[%emt 0:00:05] Black got outplayed after the opening.  Weighted Error Value: White=0.10 (very precise) /Black=0.94} 1-0

[Event "GER-ch Youth-U16 2022"]
[Site "Willingen"]
[Date "2022.06.07"]
[Round "4.13"]
[White "Bock, Marlon"]
[Black "Spriestersbach, Kai"]
[Result "0-1"]
[ECO "A48"]
[WhiteElo "1816"]
[BlackElo "1948"]
[Annotator "TA"]
[PlyCount "140"]
[EventDate "2022.06.05"]
[EventType "swiss"]
[EventRounds "9"]
[EventCountry "GER"]
[SourceTitle "playchess.com"]
[Source "ChessBase"]
[SourceQuality "1"]
[TimeControl "40/4500+30:900+30"]

{[%evp 10,140,9,-14,-19,-15,-14,-37,-38,-50,-27,-35,-19,-20,-13,-35,-34,-89,-95,-83,-95,-103,-97,-104,-91,-86,-70,-99,-81,-129,-123,-121,-103,-113,-108,-119,-118,-111,-97,-104,-97,-97,-90,-90,-85,-89,-89,-96,-96,-122,-89,-122,-100,-113,-88,-106,-89,-103,-103,-117,-97,-98,-89,-96,-100,-106,-98,-102,-79,-90,-74,-156,-158,-160,-160,-160,-160,-161,-152,-154,-150,-154,-115,-155,0,-135,-150,-146,-101,-98,-90,-90,-78,-100,-81,-83,-73,-139,-73,-73,-73,-91,-86,-108,-55,-89,-64,-111,-77,-47,-68,-34,-14,-9,-15,-74,-93,-104,-100,-36,-74,-141,-144,-277,-270,-250,-198,-200,-83,-120,-147,-29997,178]} 1. d4 {[%emt 0:00:00]} Nf6 {[%emt 0:00:00]} 2. Nf3 {[%emt 0:00:00]} g6 {[%emt 0:00:00]} 3. Nc3 {[%emt 0:00:00]} d5 {[%emt 0:00:00]} 4. Bf4 {[%emt 0:00:00]} Bg7 {[%emt 0:00:00]} 5. Qd2 {[%emt 0:00:00]} O-O {[%emt 0:00:00]} 6. Bh6 {[%emt 0:00:00]} Qd6 {[%emt 0:00:00] D00: 1 d4 d5: Unusual lines.} 7. Bxg7 {[%emt 0:00:00]} Kxg7 {[%emt 0:00:00] [#]} 8. Rd1 $146 {[%emt 0:00:00]} ({Predecessor:} 8. e3 c6 9. Ne5 Nbd7 10. f4 b5 11. Bd3 Nb6 12. O-O a5 13. a3 Nc4 14. Nxc4 bxc4 {½-½ (65) Hebden,M (2506)-Tikkanen,H (2591) Gatwick 2011}) 8... c6 {[%emt 0:00:00] Black is slightly better.} 9. e3 {[%emt 0:00:27]} Nbd7 {[%emt 0:00:00]} 10. Be2 {[%emt 0:07:02]} b5 {[%emt 0:00:00]} 11. O-O {[%emt 0:07:37]} b4 {[%emt 0:00:00]} 12. Na4 {[%emt 0:06:10]} Ne4 $1 {[%emt 0:00:00]} 13. Qc1 {[%emt 0:01:23]} (13. Qd3 $15) 13... Nb6 $1 $36 {[%emt 0:00:36][%mdl 2048] Black has strong initiative.} 14. Nxb6 {[%emt 0:04:57]} axb6 {[%emt 0:00:11]} 15. Qb1 {[%emt 0:00:39]} Bg4 {[%emt 0:04:02]} 16. h3 {[%emt 0:03:14]} Bxf3 {[%emt 0:00:43] Black is much more active.} 17. Bxf3 {[%emt 0:01:01]} Ng5 $1 {[%emt 0:02:03][%cal Be4g5,Bg5f7,Bf7d6][%mdl 32]} 18. Be2 {[%emt 0:03:03]} Ra5 {[%emt 0:01:16]} 19. c3 {[%emt 0:09:45]} (19. Bd3 $142) 19... bxc3 {[%emt 0:01:25]} 20. bxc3 {[%emt 0:00:52]} b5 {[%emt 0:00:40] Prevents c4.} 21. Bd3 {[%emt 0:08:48] Against Ne4} f5 {[%emt 0:02:08]} 22. f4 {[%emt 0:03:19]} Nf7 {[%emt 0:02:16]} 23. Rf2 {[%emt 0:01:44]} Qe6 {[%emt 0:04:09]} 24. Re2 {[%emt 0:01:36]} Nd6 {[%emt 0:02:05]} 25. Rdd2 {[%emt 0:01:52]} Rfa8 {[%emt 0:01:02]} 26. Rb2 {[%emt 0:01:54]} R8a6 {[%emt 0:01:44]} 27. Kf2 {[%emt 0:02:50]} Qc8 {[%emt 0:01:13]} 28. Ke1 {[%emt 0:01:43]} Ra3 {[%emt 0:03:22]} 29. Rec2 {[%emt 0:03:48]} Qc7 {[%emt 0:01:19]} 30. Rb3 {[%emt 0:01:07]} R3a5 {[%emt 0:00:39]} 31. Rbb2 {[%emt 0:00:46]} Ra8 {[%emt 0:01:20]} 32. Kd2 {[%emt 0:01:07]} Qa7 {[%emt 0:00:14]} 33. Ke1 {[%emt 0:00:49]} Ra3 {[%emt 0:00:12]} 34. Kd2 {[%emt 0:00:27]} Qa5 {[%emt 0:00:05]} 35. Qa1 {[%emt 0:00:58]} Ra7 {[%emt 0:00:49]} 36. Qb1 {[%emt 0:00:21]} e6 {[%emt 0:01:59]} 37. Qa1 {[%emt 0:02:00]} Qd8 {[%emt 0:04:15]} 38. Qe1 {[%emt 0:02:53]} R7a5 {[%emt 0:13:29]} 39. Ke2 {[%emt 0:02:56]} Qd7 {[%emt 0:03:11]} 40. Qb1 {[%emt 0:03:15] [#]} (40. Kf1 $142) 40... Qa7 $1 {[%emt 0:04:08]} 41. Kd2 {[%emt 0:18:09]} R5a4 {[%emt 0:18:37]} 42. Qa1 {[%emt 0:00:00]} Qa5 {[%emt 0:00:00]} 43. Qb1 {[%emt 0:00:00]} Qa8 {[%emt 0:00:00]} 44. Qa1 {[%emt 0:00:00]} Ra5 {[%emt 0:00:00]} 45. Qb1 {[%emt 0:00:00]} Qa7 {[%emt 0:00:00]} 46. Ke2 {[%emt 0:00:00]} Qa8 {[%emt 0:00:00]} 47. Kd2 $1 {[%emt 0:00:00]} Ra7 {[%emt 0:00:00]} 48. Ke2 {[%emt 0:00:00]} Qd8 {[%emt 0:00:00]} 49. Qe1 {[%emt 0:00:00]} R3a6 {[%emt 0:00:00]} (49... h5 {seems wilder.} 50. g4 hxg4 51. hxg4 Qa8) 50. Kd2 {[%emt 0:00:00]} Kg8 {[%emt 0:00:00]} (50... Qa8 {feels hotter.} 51. Qh4 h5 52. Ke2 Qh8) 51. Kd1 {[%emt 0:00:00]} Nc8 {[%emt 0:00:00]} 52. g3 {[%emt 0:00:00]} Nb6 {[%emt 0:00:00]} 53. Qd2 {[%emt 0:00:00]} (53. Ke2 $142) 53... Rg7 {[%emt 0:00:00]} ({Better is} 53... Nc4 54. Bxc4 dxc4) 54. Qe1 {[%emt 0:00:00]} Qd6 {[%emt 0:00:00]} 55. Rg2 {[%emt 0:00:00]} Ra3 {[%emt 0:00:00]} 56. g4 {[%emt 0:00:00]} Ra8 {[%emt 0:00:00]} (56... Rga7 $17 57. Qd2 Nc4 58. Bxc4 dxc4) 57. Qg1 {[%emt 0:00:00]} Raa7 {[%emt 0:02:26]} 58. h4 {[%emt 0:00:00]} (58. Rbc2 $15 {should be considered.}) 58... Nc4 {[%emt 0:02:02]} 59. Bxc4 {[%emt 0:00:00]} dxc4 {[%emt 0:00:06]} 60. h5 {[%emt 0:00:19]} Kf7 {[%emt 0:03:11][%cal Bg8f7,Bf7e7,Be7d6][%mdl 32]} 61. hxg6+ {[%emt 0:01:17]} hxg6 {[%emt 0:00:10]} 62. g5 {[%emt 0:00:34]} (62. Rh2 $11 {keeps the balance.}) 62... Qd5 {[%emt 0:01:20]} 63. Rh2 {[%emt 0:01:52]} Ra3 {[%emt 0:04:18]} 64. Rbc2 {[%emt 0:01:05]} (64. Qh1 $17) 64... Ke7 $15 {[%emt 0:15:25]} 65. Qh1 {[%emt 0:01:39]} (65. Kc1 $142) 65... Kd6 $17 {[%emt 0:00:39]} 66. Rhg2 {[%emt 0:01:24]} (66. Qxd5+ $17 {was called for.} exd5 67. Ke2) 66... Qf3+ $19 {[%emt 0:05:00]} 67. Kc1 {[%emt 0:02:42]} Qxe3+ {[%emt 0:03:25]} 68. Kb1 {[%emt 0:00:34]} Qf3 {[%emt 0:05:03]} (68... Qxf4 $19 {is more deadly. aiming for ...Re7.} 69. Rge2 Re7) 69. Qh8 {[%emt 0:00:53] [#]} Qf1+ $1 {[%emt 0:00:07]} 70. Kb2 $2 {[%emt 0:01:22][%mdl 8192] [#]} (70. Rc1 $17 Qxg2 71. Qf8+ Re7 72. Qd8+ Rd7 73. Qf8+ Kc7 74. Qxa3) 70... Rxa2+ $3 {[%emt 0:00:13][%mdl 33280] Weighted Error Value: White=0.12 (very precise) /Black=0.15 (very precise) . Loss on time!?} 0-1

[Event "GER-ch Youth-U16 2022"]
[Site "Willingen"]
[Date "2022.06.07"]
[Round "4.14"]
[White "Kort, Felix"]
[Black "Beyer, Lorenz"]
[Result "1-0"]
[ECO "D35"]
[WhiteElo "1894"]
[BlackElo "1512"]
[Annotator "NA RC COMBH"]
[PlyCount "41"]
[EventDate "2022.06.05"]
[EventType "swiss"]
[EventRounds "9"]
[EventCountry "GER"]
[SourceTitle "playchess.com"]
[Source "ChessBase"]
[SourceQuality "1"]
[TimeControl "40/4500+30:900+30"]

1. d4 {[%emt 0:00:00]} d5 {[%emt 0:00:00]} 2. c4 {[%emt 0:00:00]} e6 {[%emt 0:00:00]} 3. Nc3 {[%emt 0:00:00]} Nf6 {[%emt 0:00:00]} 4. cxd5 {[%emt 0:00:00]} exd5 {[%emt 0:00:00]} 5. Bg5 {[%emt 0:00:00]} Be7 {[%emt 0:00:00]} 6. e3 {[%emt 0:00:00]} Bf5 {[%emt 0:00:00]} 7. Bxf6 {[%emt 0:00:00]} Bxf6 {[%emt 0:00:00]} 8. Qb3 {[%emt 0:00:00]} Be6 {[%emt 0:00:00]} 9. Qxb7 {[%emt 0:00:00]} Nd7 {[%emt 0:00:00]} 10. Nxd5 {[%emt 0:03:31]} Bxd5 {[%emt 0:00:00]} 11. Qxd5 {[%emt 0:00:18]} O-O {[%emt 0:00:00]} 12. Bb5 {[%emt 0:09:32]} c5 {[%emt 0:28:17]} 13. Bxd7 {[%emt 0:17:02]} Qa5+ {[%emt 0:01:41]} 14. Kf1 {[%emt 0:02:03]} Rad8 {[%emt 0:02:29]} 15. dxc5 {[%emt 0:20:35]} h6 {[%emt 0:15:49]} 16. g3 {[%emt 0:10:23]} Rfe8 {[%emt 0:01:35]} 17. Rd1 {[%emt 0:06:26]} Rxd7 {[%emt 0:00:56]} 18. Qxd7 {[%emt 0:02:04]} Rd8 {[%emt 0:00:37]} 19. Qg4 {[%emt 0:00:08]} Qa6+ $18 {[%emt 0:03:25]} 20. Kg2 {[%emt 0:00:18]} Qb7+ {[%emt 0:02:24]} 21. Nf3 {[%emt 0:00:14]} 1-0

[Event "GER-ch Youth-U16 2022"]
[Site "Willingen"]
[Date "2022.06.07"]
[Round "4.15"]
[White "Guo, Philipp Ziming"]
[Black "Ehrig, Leon Chris"]
[Result "1-0"]
[ECO "B32"]
[WhiteElo "1825"]
[BlackElo "1890"]
[Annotator "NA RC COMBH"]
[PlyCount "73"]
[EventDate "2022.06.05"]
[EventType "swiss"]
[EventRounds "9"]
[EventCountry "GER"]
[SourceTitle "playchess.com"]
[Source "ChessBase"]
[SourceQuality "1"]
[TimeControl "40/4500+30:900+30"]

1. e4 {[%emt 0:00:00]} c5 {[%emt 0:00:00]} 2. Nf3 {[%emt 0:00:00]} Nc6 {[%emt 0:00:00]} 3. d4 {[%emt 0:00:00]} cxd4 {[%emt 0:00:00]} 4. Nxd4 {[%emt 0:00:00]} e5 {[%emt 0:00:00]} 5. Nb5 {[%emt 0:00:00]} d6 {[%emt 0:00:00]} 6. N1c3 {[%emt 0:00:00]} a6 {[%emt 0:00:00]} 7. Na3 {[%emt 0:00:00]} Be7 {[%emt 0:00:00]} 8. Nc4 {[%emt 0:00:00]} Be6 {[%emt 0:00:00]} 9. Nd5 {[%emt 0:07:14]} Bxd5 {[%emt 0:01:42]} 10. exd5 {[%emt 0:00:41]} Nb8 {[%emt 0:04:44]} 11. Bd3 {[%emt 0:07:31]} Nf6 {[%emt 0:18:54]} 12. Ne3 {[%emt 0:06:26]} Nbd7 {[%emt 0:07:57]} 13. O-O {[%emt 0:04:43]} Qc7 {[%emt 0:04:31]} 14. c4 {[%emt 0:06:05]} g6 {[%emt 0:05:18]} 15. Bd2 {[%emt 0:06:26]} O-O {[%emt 0:03:13]} 16. Rc1 {[%emt 0:07:17]} Ne8 {[%emt 0:10:26]} 17. b4 {[%emt 0:06:54]} b6 {[%emt 0:07:26]} 18. Qb3 {[%emt 0:07:23]} f5 {[%emt 0:01:47]} 19. f3 {[%emt 0:00:48]} Nef6 {[%emt 0:03:02]} (19... Bg5 $142) 20. Qb1 {[%emt 0:00:48]} Nh5 {[%emt 0:01:37]} 21. Nd1 {[%emt 0:03:54]} Qd8 {[%emt 0:01:06]} 22. Nf2 {[%emt 0:03:14]} Bg5 {[%emt 0:00:39]} 23. Qc2 {[%emt 0:00:43]} Rc8 {[%emt 0:01:52]} 24. Qb2 {[%emt 0:02:43]} Qe7 {[%emt 0:02:12]} 25. Rfe1 {[%emt 0:01:57]} Qf6 {[%emt 0:01:20]} 26. g3 {[%emt 0:02:34]} Rce8 {[%emt 0:02:30]} 27. Nh3 {[%emt 0:01:30]} Bxd2 {[%emt 0:00:51]} 28. Qxd2 {[%emt 0:00:05]} e4 {[%emt 0:05:18]} 29. fxe4 {[%emt 0:01:37]} fxe4 {[%emt 0:02:45]} 30. Bxe4 {[%emt 0:04:03]} Rxe4 $18 {[%emt 0:00:37]} 31. Rxe4 {[%emt 0:00:15]} Ne5 {[%emt 0:00:29]} 32. Qe2 {[%emt 0:01:11]} Qf5 {[%emt 0:00:43]} 33. Kg2 {[%emt 0:01:11]} Nf6 {[%emt 0:00:19]} 34. Rf4 {[%emt 0:01:12]} Qd7 {[%emt 0:00:29]} 35. Rcf1 {[%emt 0:00:46]} Neg4 {[%emt 0:00:32]} 36. Ng5 {[%emt 0:01:16]} Re8 {[%emt 0:00:39]} 37. Ne6 1-0